[Event "Snabb-SM för veteraner, 50+ 2019"]
[Site "Schackcentrum, Vegagatan 20, Gothenburg, Sweden"]
[Date "2019.10.05"]
[Round "5.11"]
[White "Frisk, Hans"]
[Black "Andersson, Kjell-Ake"]
[Result "1-0"]
[TimeControl "15 minutes + 10 seconds per move from move one"]
[WhiteFideId "1708570"]
[BlackFideId "1713825"]
[WhiteElo "1948"]
[BlackElo "1854"]

1. b3 {[%clk 00:15:18]} {[%emt 00:00:02]} Nf6 {[%clk 00:15:02]} {[%emt
00:00:18]} 2. Bb2 {[%clk 00:15:22]} {[%emt 00:00:05]} g6 {[%clk 00:15:10]}
{[%emt 00:00:03]} 3. Bxf6 {[%clk 00:15:23]} {[%emt 00:00:09]} exf6 {[%clk
00:15:18]} {[%emt 00:00:02]} 4. c4 {[%clk 00:15:32]} {[%emt 00:00:01]} f5
{[%clk 00:15:13]} {[%emt 00:00:15]} 5. Nc3 {[%clk 00:15:40]} {[%emt 00:00:02]}
Bg7 {[%clk 00:15:20]} {[%emt 00:00:03]} 6. Rc1 {[%clk 00:15:41]} {[%emt
00:00:09]} O-O {[%clk 00:15:25]} {[%emt 00:00:05]} 7. g3 {[%clk 00:15:31]}
{[%emt 00:00:20]} Nc6 {[%clk 00:15:19]} {[%emt 00:00:16]} 8. Bg2 {[%clk
00:15:25]} {[%emt 00:00:15]} Re8 {[%clk 00:15:03]} {[%emt 00:00:26]} 9. e3
{[%clk 00:14:53]} {[%emt 00:00:42]} b6 {[%clk 00:13:40]} {[%emt 00:01:34]} 10.
Nge2 {[%clk 00:14:28]} {[%emt 00:00:34]} Bb7 {[%clk 00:13:45]} {[%emt
00:00:04]} 11. O-O {[%clk 00:14:13]} {[%emt 00:00:26]} Qc8 {[%clk 00:13:33]}
{[%emt 00:00:21]} 12. Nd5 {[%clk 00:12:24]} {[%emt 00:02:00]} Ne7 {[%clk
00:13:33]} {[%emt 00:00:09]} 13. Nef4 {[%clk 00:11:24]} {[%emt 00:01:12]} c6
{[%clk 00:11:03]} {[%emt 00:02:39]} 14. Nxe7+ {[%clk 00:10:57]} {[%emt
00:00:38]} Rxe7 {[%clk 00:11:09]} {[%emt 00:00:03]} 15. h4 {[%clk 00:10:31]}
{[%emt 00:00:36]} Qe8 {[%clk 00:10:06]} {[%emt 00:01:12]} 16. d4 {[%clk
00:09:37]} {[%emt 00:01:06]} d6 {[%clk 00:09:07]} {[%emt 00:01:08]} 17. Re1
{[%clk 00:08:17]} {[%emt 00:01:31]} Rd8 {[%clk 00:08:43]} {[%emt 00:00:34]} 18.
Qd2 {[%clk 00:07:23]} {[%emt 00:01:04]} h6 {[%clk 00:06:26]} {[%emt 00:02:26]}
19. b4 {[%clk 00:06:51]} {[%emt 00:00:42]} Kh7 {[%clk 00:05:29]} {[%emt
00:01:08]} 20. b5 {[%clk 00:06:04]} {[%emt 00:00:57]} cxb5 {[%clk 00:05:06]}
{[%emt 00:00:33]} 21. Nd5 {[%clk 00:05:57]} {[%emt 00:00:17]} Bxd5 {[%clk
00:04:54]} {[%emt 00:00:22]} 22. Bxd5 {[%clk 00:05:43]} {[%emt 00:00:24]} bxc4
{[%clk 00:04:14]} {[%emt 00:00:51]} 23. Bxc4 {[%clk 00:03:58]} {[%emt
00:01:54]} d5 {[%clk 00:04:21]} {[%emt 00:00:03]} 24. Bd3 {[%clk 00:03:52]}
{[%emt 00:00:16]} Qd7 {[%clk 00:03:35]} {[%emt 00:00:54]} 25. Qc2 {[%clk
00:03:30]} {[%emt 00:00:34]} Rde8 {[%clk 00:03:37]} {[%emt 00:00:08]} 26. Red1
{[%clk 00:02:23]} {[%emt 00:01:17]} h5 {[%clk 00:03:22]} {[%emt 00:00:25]} 27.
a4 {[%clk 00:02:16]} {[%emt 00:00:18]} Qd6 {[%clk 00:02:54]} {[%emt 00:00:37]}
28. Kg2 {[%clk 00:01:44]} {[%emt 00:00:41]} Bf6 {[%clk 00:02:38]} {[%emt
00:00:27]} 29. Bb5 {[%clk 00:01:28]} {[%emt 00:00:26]} Rd8 {[%clk 00:02:23]}
{[%emt 00:00:24]} 30. Qd3 {[%clk 00:01:32]} {[%emt 00:00:07]} Re4 {[%clk
00:01:51]} {[%emt 00:00:43]} 31. Rc6 {[%clk 00:01:06]} {[%emt 00:00:35]} Qe7
{[%clk 00:02:00]} 32. Rh1 {[%clk 00:00:54]} {[%emt 00:00:22]} Bg7 {[%clk
00:01:43]} {[%emt 00:00:27]} 33. Qc2 {[%clk 00:00:54]} {[%emt 00:00:11]} Re6
{[%clk 00:01:28]} {[%emt 00:00:25]} 34. Rc7 {[%clk 00:00:59]} {[%emt 00:00:05]}
Qf8 {[%clk 00:00:45]} {[%emt 00:00:53]} 35. Rxa7 {[%clk 00:01:04]} {[%emt
00:00:04]} Rc8 {[%clk 00:00:54]} {[%emt 00:00:01]} 36. Rc7 {[%clk 00:01:09]}
{[%emt 00:00:05]} Rxc7 {[%clk 00:01:00]} {[%emt 00:00:06]} 37. Qxc7 {[%clk
00:01:17]} {[%emt 00:00:02]} Qe7 {[%clk 00:01:05]} {[%emt 00:00:04]} 38. Qxe7
{[%clk 00:01:18]} {[%emt 00:00:09]} Rxe7 {[%clk 00:01:15]} 39. Rc1 {[%clk
00:01:26]} {[%emt 00:00:02]} Bf6 {[%clk 00:01:22]} {[%emt 00:00:03]} 40. Rc6
{[%clk 00:01:32]} {[%emt 00:00:04]} Kg7 {[%clk 00:01:29]} {[%emt 00:00:03]} 41.
Rxb6 {[%clk 00:01:37]} {[%emt 00:00:05]} Ra7 {[%clk 00:01:37]} {[%emt
00:00:03]} 42. Kf3 {[%clk 00:01:30]} {[%emt 00:00:15]} Be7 {[%clk 00:01:45]}
{[%emt 00:00:03]} 43. Ke2 {[%clk 00:01:34]} {[%emt 00:00:05]} Bb4 {[%clk
00:01:49]} {[%emt 00:00:06]} 44. Bc6 {[%clk 00:00:53]} {[%emt 00:00:51]} Bc3
{[%clk 00:01:49]} {[%emt 00:00:12]} 45. Bxd5 {[%clk 00:00:50]} {[%emt
00:00:12]} Rxa4 {[%clk 00:01:57]} {[%emt 00:00:02]} 46. Rb7 {[%clk 00:00:58]}
{[%emt 00:00:02]} Ra1 {[%clk 00:02:00]} {[%emt 00:00:08]} 47. Rxf7+ {[%clk
00:00:55]} {[%emt 00:00:12]} Kh6 {[%clk 00:02:08]} {[%emt 00:00:02]} 48. Rc7
{[%clk 00:00:46]} {[%emt 00:00:19]} Re1+ {[%clk 00:02:10]} {[%emt 00:00:09]} 49.
Kd3 {[%clk 00:00:44]} {[%emt 00:00:11]} Ba5 {[%clk 00:02:16]} {[%emt 00:00:04]}
50. Ra7 {[%clk 00:00:39]} {[%emt 00:00:14]} Bb4 {[%clk 00:02:01]} {[%emt
00:00:26]} 51. Bg8 {[%clk 00:00:43]} {[%emt 00:00:05]} g5 {[%clk 00:01:53]}
{[%emt 00:00:18]} 52. hxg5+ {[%clk 00:00:32]} {[%emt 00:00:22]} Kxg5 {[%clk
00:02:01]} {[%emt 00:00:02]} 53. Kc4 {[%clk 00:00:33]} {[%emt 00:00:09]} Bf8
{[%clk 00:01:56]} {[%emt 00:00:15]} 54. Rf7 {[%clk 00:00:37]} {[%emt 00:00:06]}
Ba3 {[%clk 00:01:58]} {[%emt 00:00:08]} 55. Bh7 {[%clk 00:00:40]} {[%emt
00:00:06]} Rc1+ {[%clk 00:01:35]} {[%emt 00:00:33]} 56. Kd5 {[%clk 00:00:44]}
{[%emt 00:00:06]} h4 {[%clk 00:01:23]} {[%emt 00:00:23]} 57. gxh4 {[%clk
00:00:42]} {[%emt 00:00:11]} Kxh4 {[%clk 00:01:32]} {[%emt 00:00:02]} 58. Rxf5
{[%clk 00:00:46]} {[%emt 00:00:05]} 1-0

[Event "Snabb-SM för veteraner, 50+ 2019"]
[Site "Schackcentrum, Vegagatan 20, Gothenburg, Sweden"]
[Date "2019.10.05"]
[Round "6.1"]
[White "Svenn, Gosta"]
[Black "Svensson, Sven"]
[Result "1-0"]
[TimeControl "15 minutes + 10 seconds per move from move one"]
[WhiteTitle "FM"]
[WhiteFideId "1700553"]
[BlackFideId "1709240"]
[WhiteElo "2272"]
[BlackElo "2158"]

1. d4 {[%clk 00:15:18]} {[%emt 00:00:01]} Nf6 {[%clk 00:15:19]} {[%emt
00:00:02]} 2. c4 {[%clk 00:15:26]} {[%emt 00:00:03]} e6 {[%clk 00:15:27]}
{[%emt 00:00:01]} 3. Nf3 {[%clk 00:15:32]} {[%emt 00:00:03]} Bb4+ {[%clk
00:15:34]} {[%emt 00:00:04]} 4. Bd2 {[%clk 00:15:40]} {[%emt 00:00:03]} Qe7
{[%clk 00:15:42]} {[%emt 00:00:02]} 5. g3 {[%clk 00:15:45]} {[%emt 00:00:04]}
Nc6 {[%clk 00:15:38]} {[%emt 00:00:14]} 6. a3 {[%clk 00:15:45]} {[%emt
00:00:10]} Bxd2+ {[%clk 00:15:46]} {[%emt 00:00:02]} 7. Qxd2 {[%clk 00:15:53]}
{[%emt 00:00:02]} a5 {[%clk 00:15:50]} {[%emt 00:00:06]} 8. Nc3 {[%clk
00:15:35]} {[%emt 00:00:29]} d6 {[%clk 00:15:57]} {[%emt 00:00:03]} 9. d5
{[%clk 00:14:43]} {[%emt 00:01:02]} Nb8 {[%clk 00:15:43]} {[%emt 00:00:24]} 10.
Qc2 {[%clk 00:13:51]} {[%emt 00:01:03]} O-O {[%clk 00:15:33]} {[%emt 00:00:20]}
11. Bg2 {[%clk 00:13:59]} {[%emt 00:00:02]} e5 {[%clk 00:15:33]} {[%emt
00:00:11]} 12. O-O {[%clk 00:13:40]} {[%emt 00:00:27]} Na6 {[%clk 00:14:42]}
{[%emt 00:01:02]} 13. e4 {[%clk 00:13:19]} {[%emt 00:00:31]} Bd7 {[%clk
00:13:44]} {[%emt 00:01:08]} 14. Nd2 {[%clk 00:13:00]} {[%emt 00:00:29]} c6
{[%clk 00:13:07]} {[%emt 00:00:47]} 15. Rab1 {[%clk 00:12:49]} {[%emt
00:00:21]} Rfc8 {[%clk 00:12:35]} {[%emt 00:00:42]} 16. b4 {[%clk 00:12:26]}
{[%emt 00:00:33]} axb4 {[%clk 00:12:01]} {[%emt 00:00:44]} 17. axb4 {[%clk
00:12:35]} {[%emt 00:00:02]} cxd5 {[%clk 00:12:08]} {[%emt 00:00:03]} 18. cxd5
{[%clk 00:12:32]} {[%emt 00:00:13]} Bb5 {[%clk 00:10:26]} {[%emt 00:01:52]} 19.
Rfc1 {[%clk 00:12:28]} {[%emt 00:00:13]} Rc7 {[%clk 00:10:27]} {[%emt
00:00:09]} 20. Qb2 {[%clk 00:08:31]} {[%emt 00:04:07]} Bd7 {[%clk 00:07:33]}
{[%emt 00:03:04]} 21. Bf1 {[%clk 00:07:24]} {[%emt 00:01:16]} Qe8 {[%clk
00:06:03]} {[%emt 00:01:41]} 22. Nc4 {[%clk 00:07:03]} {[%emt 00:00:31]} Qe7
{[%clk 00:04:28]} {[%emt 00:01:46]} 23. Nb6 {[%clk 00:06:15]} {[%emt 00:00:58]}
Rb8 {[%clk 00:03:55]} {[%emt 00:00:43]} 24. Bd3 {[%clk 00:05:55]} {[%emt
00:00:30]} g6 {[%clk 00:03:52]} {[%emt 00:00:13]} 25. Qe2 {[%clk 00:05:04]}
{[%emt 00:01:01]} Be8 {[%clk 00:02:50]} {[%emt 00:01:12]} 26. Rc2 {[%clk
00:04:18]} {[%emt 00:00:55]} Qd8 {[%clk 00:02:21]} {[%emt 00:00:39]} 27. Nca4
{[%clk 00:03:19]} {[%emt 00:01:09]} Bxa4 {[%clk 00:01:46]} {[%emt 00:00:46]} 28.
Nxa4 {[%clk 00:03:26]} {[%emt 00:00:02]} Rxc2 {[%clk 00:01:54]} {[%emt
00:00:02]} 29. Qxc2 {[%clk 00:03:22]} {[%emt 00:00:14]} Nd7 {[%clk 00:00:43]}
{[%emt 00:01:22]} 30. Qe2 {[%clk 00:02:49]} {[%emt 00:00:42]} Nc7 {[%clk
00:00:44]} {[%emt 00:00:09]} 31. Rc1 {[%clk 00:02:19]} {[%emt 00:00:40]} Ra8
{[%clk 00:00:47]} {[%emt 00:00:07]} 32. Qc2 {[%clk 00:02:20]} {[%emt 00:00:09]}
Ne8 {[%clk 00:00:45]} {[%emt 00:00:12]} 33. Bb5 {[%clk 00:02:15]} {[%emt
00:00:15]} Nb6 {[%clk 00:00:37]} {[%emt 00:00:18]} 34. Bxe8 {[%clk 00:02:14]}
{[%emt 00:00:11]} 1-0

[Event "Snabb-SM för veteraner, 50+ 2019"]
[Site "Schackcentrum, Vegagatan 20, Gothenburg, Sweden"]
[Date "2019.10.05"]
[Round "6.2"]
[White "Borvander, Tom"]
[Black "Angskog, Kent"]
[Result "1/2-1/2"]
[TimeControl "15 minutes + 10 seconds per move from move one"]
[WhiteFideId "1707388"]
[BlackFideId "1703668"]
[WhiteElo "2066"]
[BlackElo "2136"]

1. d4 {[%clk 00:15:19]} d6 {[%clk 00:15:18]} {[%emt 00:00:02]} 2. Nf3 {[%clk
00:15:27]} {[%emt 00:00:02]} Nf6 {[%clk 00:15:19]} {[%emt 00:00:09]} 3. c4
{[%clk 00:15:35]} {[%emt 00:00:02]} Bg4 {[%clk 00:15:21]} {[%emt 00:00:07]} 4.
Nc3 {[%clk 00:15:39]} {[%emt 00:00:07]} Nc6 {[%clk 00:14:51]} {[%emt 00:00:39]}
5. d5 {[%clk 00:15:19]} {[%emt 00:00:31]} Bxf3 {[%clk 00:14:35]} {[%emt
00:00:26]} 6. gxf3 {[%clk 00:15:11]} {[%emt 00:00:18]} Ne5 {[%clk 00:14:29]}
{[%emt 00:00:15]} 7. f4 {[%clk 00:15:13]} {[%emt 00:00:09]} Ng6 {[%clk
00:14:22]} {[%emt 00:00:17]} 8. Qa4+ {[%clk 00:12:31]} {[%emt 00:02:52]} Qd7
{[%clk 00:13:49]} {[%emt 00:00:42]} 9. Qxd7+ {[%clk 00:12:14]} {[%emt
00:00:29]} Nxd7 {[%clk 00:13:44]} {[%emt 00:00:14]} 10. e4 {[%clk 00:12:07]}
{[%emt 00:00:17]} e5 {[%clk 00:11:51]} {[%emt 00:02:03]} 11. f5 {[%clk
00:10:05]} {[%emt 00:02:12]} Nf4 {[%clk 00:11:55]} {[%emt 00:00:07]} 12. Be3
{[%clk 00:09:54]} {[%emt 00:00:21]} g6 {[%clk 00:07:45]} {[%emt 00:04:19]} 13.
O-O-O {[%clk 00:08:43]} {[%emt 00:01:22]} a6 {[%clk 00:07:36]} {[%emt
00:00:19]} 14. Kb1 {[%clk 00:08:15]} {[%emt 00:00:37]} gxf5 {[%clk 00:06:43]}
{[%emt 00:01:04]} 15. exf5 {[%clk 00:08:24]} {[%emt 00:00:02]} Nf6 {[%clk
00:06:48]} {[%emt 00:00:03]} 16. Ne2 {[%clk 00:07:41]} {[%emt 00:00:53]} Bh6
{[%clk 00:06:19]} {[%emt 00:00:39]} 17. Nxf4 {[%clk 00:06:35]} {[%emt
00:01:17]} Bxf4 {[%clk 00:06:23]} {[%emt 00:00:05]} 18. Bxf4 {[%clk 00:06:30]}
{[%emt 00:00:16]} exf4 {[%clk 00:06:31]} {[%emt 00:00:02]} 19. Rd4 {[%clk
00:06:33]} {[%emt 00:00:07]} Kd7 {[%clk 00:06:34]} {[%emt 00:00:07]} 20. Rxf4
{[%clk 00:06:23]} {[%emt 00:00:19]} Rae8 {[%clk 00:06:39]} {[%emt 00:00:05]} 21.
Bd3 {[%clk 00:06:28]} {[%emt 00:00:05]} Rhg8 {[%clk 00:06:44]} {[%emt
00:00:05]} 22. Rh4 {[%clk 00:04:06]} {[%emt 00:02:32]} h5 {[%clk 00:06:40]}
{[%emt 00:00:15]} 23. h3 {[%clk 00:03:00]} {[%emt 00:01:16]} Rg2 {[%clk
00:05:40]} {[%emt 00:01:09]} 24. Rf1 {[%clk 00:03:09]} {[%emt 00:00:02]} Rh2
{[%clk 00:04:27]} {[%emt 00:01:22]} 25. a3 {[%clk 00:03:10]} {[%emt 00:00:09]}
Rg8 {[%clk 00:03:12]} {[%emt 00:01:25]} 26. Be2 {[%clk 00:02:43]} {[%emt
00:00:38]} Rg5 {[%clk 00:03:15]} {[%emt 00:00:06]} 27. Bd3 {[%clk 00:01:58]}
{[%emt 00:00:56]} Rgg2 {[%clk 00:03:12]} {[%emt 00:00:13]} 28. Be2 {[%clk
00:02:02]} {[%emt 00:00:06]} Rg5 {[%clk 00:03:16]} {[%emt 00:00:06]} 29. Bd3
{[%clk 00:02:09]} {[%emt 00:00:03]} Rgg2 {[%clk 00:03:24]} {[%emt 00:00:01]}
1/2-1/2

[Event "Snabb-SM för veteraner, 50+ 2019"]
[Site "Schackcentrum, Vegagatan 20, Gothenburg, Sweden"]
[Date "2019.10.05"]
[Round "6.3"]
[White "Eriksson, Kristian"]
[Black "Andreasson, Ingvar"]
[Result "1-0"]
[TimeControl "15 minutes + 10 seconds per move from move one"]
[WhiteFideId "1705172"]
[BlackFideId "1700294"]
[WhiteElo "2025"]
[BlackElo "2413"]

1. e4 {[%clk 00:15:18]} {[%emt 00:00:01]} c5 {[%clk 00:15:20]} 2. Nf3 {[%clk
00:15:19]} {[%emt 00:00:09]} e6 {[%clk 00:15:28]} {[%emt 00:00:02]} 3. Nc3
{[%clk 00:15:25]} {[%emt 00:00:04]} a6 {[%clk 00:15:34]} {[%emt 00:00:05]} 4.
d4 {[%clk 00:15:29]} {[%emt 00:00:06]} cxd4 {[%clk 00:15:42]} {[%emt 00:00:02]}
5. Nxd4 {[%clk 00:15:37]} {[%emt 00:00:02]} Ne7 {[%clk 00:15:24]} {[%emt
00:00:28]} 6. g3 {[%clk 00:14:50]} {[%emt 00:00:56]} Nec6 {[%clk 00:15:23]}
{[%emt 00:00:11]} 7. Bg2 {[%clk 00:14:34]} {[%emt 00:00:26]} Be7 {[%clk
00:14:58]} {[%emt 00:00:36]} 8. O-O {[%clk 00:14:02]} {[%emt 00:00:42]} O-O
{[%clk 00:14:42]} {[%emt 00:00:26]} 9. Be3 {[%clk 00:13:10]} {[%emt 00:01:01]}
d6 {[%clk 00:14:40]} {[%emt 00:00:13]} 10. Qd2 {[%clk 00:11:22]} {[%emt
00:01:57]} Ne5 {[%clk 00:14:44]} {[%emt 00:00:07]} 11. b3 {[%clk 00:11:18]}
{[%emt 00:00:14]} Ng4 {[%clk 00:14:52]} {[%emt 00:00:02]} 12. Rad1 {[%clk
00:10:52]} {[%emt 00:00:35]} Nxe3 {[%clk 00:14:55]} {[%emt 00:00:07]} 13. Qxe3
{[%clk 00:10:55]} {[%emt 00:00:07]} Qc7 {[%clk 00:14:21]} {[%emt 00:00:45]} 14.
Rd2 {[%clk 00:09:36]} {[%emt 00:01:29]} Bd7 {[%clk 00:13:19]} {[%emt 00:01:10]}
15. Rfd1 {[%clk 00:09:34]} {[%emt 00:00:13]} Nc6 {[%clk 00:11:12]} {[%emt
00:02:18]} 16. Nxc6 {[%clk 00:08:05]} {[%emt 00:01:38]} bxc6 {[%clk 00:09:45]}
{[%emt 00:01:38]} 17. Ne2 {[%clk 00:07:35]} {[%emt 00:00:39]} a5 {[%clk
00:09:01]} {[%emt 00:00:55]} 18. c4 {[%clk 00:06:03]} {[%emt 00:01:42]} Qa7
{[%clk 00:08:13]} {[%emt 00:00:57]} 19. Qxa7 {[%clk 00:05:13]} {[%emt
00:01:02]} Rxa7 {[%clk 00:08:20]} {[%emt 00:00:02]} 20. Nd4 {[%clk 00:04:14]}
{[%emt 00:01:09]} Rb8 {[%clk 00:04:23]} {[%emt 00:04:06]} 21. e5 {[%clk
00:03:46]} {[%emt 00:00:38]} d5 {[%clk 00:04:27]} {[%emt 00:00:06]} 22. cxd5
{[%clk 00:03:46]} {[%emt 00:00:10]} cxd5 {[%clk 00:04:36]} {[%emt 00:00:01]} 23.
Rc2 {[%clk 00:03:22]} {[%emt 00:00:35]} Ba3 {[%clk 00:04:43]} {[%emt 00:00:02]}
24. f4 {[%clk 00:03:13]} {[%emt 00:00:19]} a4 {[%clk 00:04:15]} {[%emt
00:00:39]} 25. f5 {[%clk 00:03:20]} {[%emt 00:00:03]} Kf8 {[%clk 00:02:59]}
{[%emt 00:01:26]} 26. fxe6 {[%clk 00:03:07]} {[%emt 00:00:22]} fxe6 {[%clk
00:03:07]} {[%emt 00:00:02]} 27. Bh3 {[%clk 00:02:45]} {[%emt 00:00:33]} Rb6
{[%clk 00:04:45]} {[%emt 00:00:01]} 28. Kg2 {[%clk 00:02:23]} {[%emt 00:00:32]}
Ke7 {[%clk 00:02:50]} {[%emt 00:00:35]} 29. Rf1 {[%clk 00:02:16]} {[%emt
00:00:17]} axb3 {[%clk 00:02:34]} {[%emt 00:00:27]} 30. axb3 {[%clk 00:02:21]}
{[%emt 00:00:05]} Bb4 {[%clk 00:02:29]} {[%emt 00:00:14]} 31. Rfc1 {[%clk
00:02:01]} {[%emt 00:00:30]} Ba3 {[%clk 00:01:41]} {[%emt 00:00:59]} 32. Rf1
{[%clk 00:01:55]} {[%emt 00:00:15]} Rba6 {[%clk 00:01:37]} {[%emt 00:00:14]} 33.
Rcf2 {[%clk 00:01:49]} {[%emt 00:00:17]} Be8 {[%clk 00:01:44]} {[%emt
00:00:03]} 34. Rf8 {[%clk 00:01:44]} {[%emt 00:00:14]} Bg6 {[%clk 00:01:54]}
{[%emt 00:00:01]} 35. Rg8 {[%clk 00:01:36]} {[%emt 00:00:18]} Bc5 {[%clk
00:01:22]} {[%emt 00:00:42]} 36. Rxg7+ {[%clk 00:01:24]} {[%emt 00:00:22]} Ke8
{[%clk 00:01:23]} {[%emt 00:00:12]} 37. Rg8+ {[%clk 00:00:59]} {[%emt
00:00:30]} Kd7 {[%clk 00:01:20]} {[%emt 00:00:15]} 38. Rg7+ {[%clk 00:01:05]}
{[%emt 00:00:02]} Be7 {[%clk 00:01:24]} {[%emt 00:00:06]} 39. Nb5 {[%clk
00:00:36]} {[%emt 00:00:39]} Rb7 {[%clk 00:01:12]} {[%emt 00:00:21]} 40. Nd4
{[%clk 00:00:42]} {[%emt 00:00:04]} Rb4 {[%clk 00:01:19]} {[%emt 00:00:03]} 41.
Rd1 {[%clk 00:00:33]} {[%emt 00:00:19]} Ra2+ {[%clk 00:00:42]} {[%emt
00:00:47]} 42. Kg1 {[%clk 00:00:34]} {[%emt 00:00:09]} Rb6 {[%clk 00:00:13]}
{[%emt 00:00:39]} 43. Nxe6 {[%clk 00:00:32]} {[%emt 00:00:12]} Bc2 {[%emt
00:00:13]} 1-0

[Event "Snabb-SM för veteraner, 50+ 2019"]
[Site "Schackcentrum, Vegagatan 20, Gothenburg, Sweden"]
[Date "2019.10.05"]
[Round "6.4"]
[White "Svenn, Matti"]
[Black "Naslund, Mikael"]
[Result "0-1"]
[TimeControl "15 minutes + 10 seconds per move from move one"]
[BlackTitle "FM"]
[WhiteFideId "1705091"]
[BlackFideId "1708260"]
[WhiteElo "2195"]
[BlackElo "2076"]

1. e4 {[%clk 00:15:18]} {[%emt 00:00:01]} d5 {[%clk 00:15:14]} {[%emt
00:00:07]} 2. exd5 {[%clk 00:15:25]} {[%emt 00:00:03]} Nf6 {[%clk 00:15:23]}
{[%emt 00:00:02]} 3. c4 {[%clk 00:15:32]} {[%emt 00:00:01]} c6 {[%clk
00:15:30]} {[%emt 00:00:03]} 4. d4 {[%clk 00:15:41]} cxd5 {[%clk 00:15:39]}
{[%emt 00:00:02]} 5. Nc3 {[%clk 00:15:48]} {[%emt 00:00:02]} g6 {[%clk
00:15:44]} {[%emt 00:00:05]} 6. h3 {[%clk 00:14:55]} {[%emt 00:01:02]} Bg7
{[%clk 00:15:46]} {[%emt 00:00:09]} 7. Nf3 {[%clk 00:15:04]} {[%emt 00:00:01]}
O-O {[%clk 00:15:44]} {[%emt 00:00:12]} 8. Be3 {[%clk 00:15:10]} {[%emt
00:00:03]} Nc6 {[%clk 00:14:44]} {[%emt 00:01:11]} 9. Qd2 {[%clk 00:15:17]}
{[%emt 00:00:03]} Ne4 {[%clk 00:13:46]} {[%emt 00:01:07]} 10. Nxe4 {[%clk
00:15:03]} {[%emt 00:00:24]} dxe4 {[%clk 00:13:54]} {[%emt 00:00:02]} 11. Ng5
{[%clk 00:15:03]} {[%emt 00:00:10]} Nxd4 {[%clk 00:12:54]} {[%emt 00:01:10]} 12.
Nxe4 {[%clk 00:15:08]} {[%emt 00:00:06]} Bf5 {[%clk 00:12:41]} {[%emt
00:00:22]} 13. Bd3 {[%clk 00:15:08]} {[%emt 00:00:10]} Qc7 {[%clk 00:10:58]}
{[%emt 00:01:53]} 14. Bxd4 {[%clk 00:08:51]} {[%emt 00:06:28]} Bxd4 {[%clk
00:11:04]} {[%emt 00:00:04]} 15. O-O {[%clk 00:08:53]} {[%emt 00:00:08]} Rad8
{[%clk 00:09:51]} {[%emt 00:01:22]} 16. Qe2 {[%clk 00:08:56]} {[%emt 00:00:08]}
Bxb2 {[%clk 00:07:57]} {[%emt 00:02:04]} 17. Rad1 {[%clk 00:07:53]} {[%emt
00:01:13]} Bd4 {[%clk 00:07:47]} {[%emt 00:00:20]} 18. g4 {[%clk 00:07:48]}
{[%emt 00:00:15]} Bd7 {[%clk 00:06:51]} {[%emt 00:01:06]} 19. Kg2 {[%clk
00:04:46]} {[%emt 00:03:11]} Ba4 {[%clk 00:04:33]} {[%emt 00:02:29]} 20. Rd2
{[%clk 00:04:30]} {[%emt 00:00:26]} Bc6 {[%clk 00:04:41]} {[%emt 00:00:02]} 21.
f3 {[%clk 00:04:37]} {[%emt 00:00:04]} Qf4 {[%clk 00:04:33]} {[%emt 00:00:17]}
22. Ng3 {[%clk 00:02:51]} {[%emt 00:01:55]} Bc3 {[%clk 00:03:18]} {[%emt
00:01:25]} 23. Rdd1 {[%clk 00:02:53]} {[%emt 00:00:09]} Ba4 {[%clk 00:02:58]}
{[%emt 00:00:30]} 0-1

[Event "Snabb-SM för veteraner, 50+ 2019"]
[Site "Schackcentrum, Vegagatan 20, Gothenburg, Sweden"]
[Date "2019.10.05"]
[Round "6.5"]
[White "Holst, Conny"]
[Black "Sigeman, Johan"]
[Result "1-0"]
[TimeControl "15 minutes + 10 seconds per move from move one"]
[WhiteFideId "1701428"]
[BlackFideId "1705601"]
[WhiteElo "2166"]
[BlackElo "2100"]

1. d4 {[%clk 00:15:13]} {[%emt 00:00:06]} Nf6 {[%clk 00:15:16]} {[%emt
00:00:04]} 2. c4 {[%clk 00:15:20]} {[%emt 00:00:02]} e6 {[%clk 00:15:24]}
{[%emt 00:00:03]} 3. Nc3 {[%clk 00:15:28]} {[%emt 00:00:01]} Bb4 {[%clk
00:15:25]} {[%emt 00:00:10]} 4. e3 {[%clk 00:15:33]} {[%emt 00:00:04]} O-O
{[%clk 00:15:29]} {[%emt 00:00:07]} 5. Bd3 {[%clk 00:15:18]} {[%emt 00:00:25]}
d5 {[%clk 00:15:36]} {[%emt 00:00:02]} 6. cxd5 {[%clk 00:15:11]} {[%emt
00:00:18]} exd5 {[%clk 00:15:39]} {[%emt 00:00:07]} 7. Nge2 {[%clk 00:14:43]}
{[%emt 00:00:37]} Re8 {[%clk 00:14:46]} {[%emt 00:01:04]} 8. O-O {[%clk
00:14:33]} {[%emt 00:00:19]} Nbd7 {[%clk 00:13:45]} {[%emt 00:01:12]} 9. Ng3
{[%clk 00:12:55]} {[%emt 00:01:48]} Nf8 {[%clk 00:12:02]} {[%emt 00:01:53]} 10.
f3 {[%clk 00:12:03]} {[%emt 00:01:02]} c6 {[%clk 00:11:31]} {[%emt 00:00:41]}
11. Nce2 {[%clk 00:10:56]} {[%emt 00:01:17]} Ne6 {[%clk 00:10:16]} {[%emt
00:01:26]} 12. Kh1 {[%clk 00:10:15]} {[%emt 00:00:52]} Bf8 {[%clk 00:09:56]}
{[%emt 00:00:29]} 13. Bd2 {[%clk 00:09:21]} {[%emt 00:01:03]} c5 {[%clk
00:09:23]} {[%emt 00:00:45]} 14. Rc1 {[%clk 00:08:59]} {[%emt 00:00:31]} Qb6
{[%clk 00:09:12]} {[%emt 00:00:21]} 15. Bc3 {[%clk 00:08:12]} {[%emt 00:00:57]}
cxd4 {[%clk 00:07:02]} {[%emt 00:02:20]} 16. Nxd4 {[%clk 00:07:02]} {[%emt
00:01:20]} Nc5 {[%clk 00:06:40]} {[%emt 00:00:32]} 17. Bb1 {[%clk 00:07:10]}
{[%emt 00:00:02]} Rxe3 {[%clk 00:04:39]} {[%emt 00:02:11]} 18. Ndf5 {[%clk
00:06:56]} {[%emt 00:00:24]} Bxf5 {[%clk 00:04:04]} {[%emt 00:00:45]} 19. Nxf5
{[%clk 00:07:01]} {[%emt 00:00:04]} Re6 {[%clk 00:03:53]} {[%emt 00:00:21]} 20.
Qd2 {[%clk 00:06:22]} {[%emt 00:00:50]} Rae8 {[%clk 00:03:21]} {[%emt
00:00:42]} 21. Qg5 {[%clk 00:05:53]} {[%emt 00:00:39]} Kh8 {[%clk 00:03:22]}
{[%emt 00:00:08]} 22. Rcd1 {[%clk 00:05:23]} {[%emt 00:00:41]} Ncd7 {[%clk
00:02:29]} {[%emt 00:01:04]} 23. Rxd5 {[%clk 00:05:04]} {[%emt 00:00:28]} Qf2
{[%clk 00:02:11]} {[%emt 00:00:29]} 24. Rdd1 {[%clk 00:04:59]} {[%emt
00:00:14]} Qe2 {[%clk 00:02:02]} {[%emt 00:00:19]} 25. Bd3 {[%clk 00:04:50]}
{[%emt 00:00:19]} 1-0